[Event "24th Hoogeschool Zeeland 2022"]
[Site "Vlissingen"]
[Date "2022.08.07"]
[Round "2.10"]
[White "Duson, Robin"]
[Black "Vrolijk, Liam"]
[Result "0-1"]
[ECO "A43"]
[WhiteElo "2027"]
[BlackElo "2464"]
[Annotator "TA"]
[PlyCount "108"]
[EventDate "2022.08.05"]
[EventType "swiss"]
[EventCountry "NED"]
[SourceTitle "playchess.com"]
[Source "ChessBase"]
[SourceQuality "1"]
[TimeControl "40/5400+30:1800+30"]

{[%evp 10,108,78,71,98,97,107,30,32,27,29,22,30,25,93,29,25,0,0,0,0,0,0,0,0,0,0,-7,-12,-12,0,0,0,0,0,0,0,-28,-20,-28,-28,-39,-35,-39,-39,-92,-76,-95,-89,-120,-77,-100,-96,-164,-172,-239,-195,-189,-64,-84,-80,-95,-95,-95,-95,-95,-95,-95,99,0,0,0,0,-62,-62,-62,-62,-62,-62,-63,-63,-77,0,0,0,0,0,-871,-846,-29966,-29967,-29965,-29965,-29973,-29973,-12811,-2546,-1129,-389,-29997,-29998]} 1. d4 {[%emt 0:04:37]} g6 {[%emt 0:00:34]} 2. c4 {[%emt 0:00:41]} Bg7 {[%emt 0:00:08]} 3. e4 {[%emt 0:02:40]} d6 {[%emt 0:02:51]} 4. Nc3 {[%emt 0:00:45]} c5 {[%emt 0:00:39]} 5. d5 {[%emt 0:01:33]} Bxc3+ {[%emt 0:01:03]} 6. bxc3 {[%emt 0:00:13]} e5 $1 {[%emt 0:00:06][%mdl 4] is more profitable than 6...Qa5 at the moment. A43: Schmid Benoni.} 7. Bd3 {[%emt 0:11:05]} Nd7 {[%emt 0:00:39]} 8. f4 {[%emt 0:08:51]} (8. a4 $16) 8... exf4 {[%emt 0:03:28] White has an edge.} 9. Bxf4 {[%emt 0:01:28]} Qh4+ {[%emt 0:07:00]} 10. Bg3 {[%emt 0:05:43]} Qe7 {[%emt 0:03:40]} 11. Nf3 {[%emt 0:03:32] [#]} Ngf6 $146 {[%emt 0:07:05]} (11... Nh6 $1 $11 {remains equal.}) ({Predecessor:} 11... Nh6 12. O-O f6 13. a4 a5 14. Bh4 O-O 15. Rb1 Nf7 16. Qd2 Kg7 17. h3 Rb8 {1-0 (56) Dardha,D (2485)-Basso,P (2580) Bassano del Grappa 2021}) 12. O-O {[%emt 0:02:49]} (12. Bh4 $16) 12... Ng4 $1 $11 {[%emt 0:09:07]} 13. Bh4 {[%emt 0:08:11]} f6 {[%emt 0:01:30]} 14. Qd2 {[%emt 0:02:59] Prevents Ne3.} O-O {[%emt 0:03:37]} 15. h3 {[%emt 0:05:08]} Nge5 {[%emt 0:00:11]} 16. Nxe5 {[%emt 0:02:00]} Nxe5 {[%emt 0:00:19]} 17. Rf2 {[%emt 0:01:16]} Bd7 {[%emt 0:04:31]} (17... g5 $5 18. Bg3 Bd7 $11) 18. Raf1 {[%emt 0:03:08][%cal Rf2f6]} g5 {[%emt 0:02:39]} 19. Bg3 {[%emt 0:00:49]} Rae8 {[%emt 0:06:21]} 20. Be2 {[%emt 0:02:47]} Kg7 {[%emt 0:05:10]} 21. Qb2 {[%emt 0:04:12]} b6 {[%emt 0:01:30]} 22. a4 {[%emt 0:03:11]} Rb8 {[%emt 0:01:30]} (22... Bxa4 23. Ra1 Bd7 24. Rxa7 $16) 23. Qa2 {[%emt 0:02:10]} Be8 {[%emt 0:04:12]} 24. Bd1 {[%emt 0:02:31]} Bg6 {[%emt 0:03:48]} 25. Bc2 {[%emt 0:00:35]} h5 {[%emt 0:02:03][%cal Bh7h5,Bh5h4][%mdl 32]} 26. Re2 {[%emt 0:02:47]} h4 {[%emt 0:01:44]} 27. Be1 {[%emt 0:00:37]} (27. Bh2 $1 $15) 27... Qb7 {[%emt 0:03:37]} 28. Re3 {[%emt 0:02:49]} Rbe8 {[%emt 0:02:16]} 29. Bb3 {[%emt 0:01:11]} Re7 {[%emt 0:03:15]} 30. Qe2 {[%emt 0:01:03]} Qc8 {[%emt 0:00:57]} 31. Kh2 {[%emt 0:02:18]} (31. Rf2 $17) 31... Qe8 $19 {[%emt 0:00:48]} 32. Bd1 {[%emt 0:02:05]} (32. Bd2 $142) 32... f5 {[%emt 0:11:07]} 33. exf5 {[%emt 0:03:43]} Ng4+ {[%emt 0:00:23]} 34. hxg4 {[%emt 0:01:12]} Rxe3 {[%emt 0:00:07]} 35. Qf2 {[%emt 0:00:37] Threatens to win with Bd2.} Qe5+ $1 {[%emt 0:01:10]} 36. Kg1 {[%emt 0:00:55]} h3 $1 {[%emt 0:02:22] And now ...hxg2 would win. 0x0.001e3c65c5c8dp-1022s more active pieces.} 37. Bd2 {[%emt 0:01:44]} hxg2 $1 {[%emt 0:02:27]} 38. Kxg2 {[%emt 0:00:53] [#]} Re4 {[%emt 0:03:41] Really sharp!} (38... Rh3 $1 $17 {[%csl Gh3][%cal Re5h2] and life is bright.} 39. Rh1 (39. Kxh3 Rh8+ 40. Kg2 Rh2+ 41. Kg1 Rxf2 $19) (39. f6+ $2 Kf7 $19) 39... Rxh1 40. Kxh1 Rh8+ 41. Kg1 Bf7 42. Bxg5 Rh3) 39. Bf3 {[%emt 0:03:09]} (39. Bxg5 $16 {Hoping for Qd2.} Rxc4 40. Qd2 (40. Qh4 Rh8 $17) 40... Bxf5 41. Bh6+ Kg8 42. Qg5+ Kh7 43. Rxf5 (43. gxf5 $2 Rg8 $19) 43... Rxf5 44. gxf5 Rxc3 45. Qg6+ (45. Kf1 Rh3 $11) 45... Kh8 46. Qh5 Qg3+ 47. Kf1 Qh3+ 48. Qxh3 Rxh3 49. Bf8) 39... Bxf5 {[%emt 0:01:38]} 40. gxf5 {[%emt 0:01:00]} Rxf5 $40 {[%emt 0:00:41][%mdl 128] aiming for ...g4. White needs to defend precisely.} 41. Re1 {[%emt 0:08:09] [#]} ({White should try} 41. Qg3 $11) 41... Rxf3 $1 $15 {[%emt 0:04:07]} 42. Qxf3 {[%emt 0:07:24]} (42. Kxf3 $2 {too greedy.} Qf5+ 43. Kg2 Rg4+ 44. Kf1 Qd3+ 45. Re2 Qh3+ 46. Ke1 Qh1+ 47. Qf1 Rg1 48. Re7+ Kg6 49. Re6+ Kh5 50. Qxg1 Qxg1+ 51. Ke2 Qg2+ 52. Kd3 Qf1+ 53. Kc2 Qxc4 54. Rxd6 Qxa4+ 55. Kd3 Qb5+ 56. Kc2 Qf1 $19) 42... Rxe1 {[%emt 0:00:10]} 43. Bxe1 {[%emt 0:00:06]} Qxe1 {[%emt 0:00:05][%mdl 4096] Endgame KQ-KQ} 44. Qf5 {[%emt 0:01:33]} Qe7 {[%emt 0:02:07] Inhibits Qd7.} ({But not} 44... Qxc3 45. Qxg5+ Kh7 46. Qf5+ Kg8 47. Qe6+ Kh8 48. Qh6+ Kg8 49. Qe6+ Kh8 50. Qxd6 $11) 45. Kg1 {[%emt 0:03:07]} a5 {[%emt 0:02:34]} (45... a6 $17) 46. Kg2 $11 {[%emt 0:00:19]} Qf6 {[%emt 0:00:21]} 47. Qd7+ {[%emt 0:01:08]} Kg6 {[%emt 0:00:33]} 48. Qc7 $2 {[%emt 0:00:23][%mdl 8192] [#]} (48. Qe8+ $11 Kf5 49. Qe3) 48... g4 $1 $19 {[%emt 0:01:32]} 49. Qxb6 {[%emt 0:00:43]} Kg5 {[%emt 0:01:19]} 50. Qb8 {[%emt 0:02:30]} Kh4 {[%emt 0:01:15]} 51. Qe8 {[%emt 0:00:58]} Qf3+ {[%emt 0:01:36]} 52. Kg1 {[%emt 0:00:09]} Qd1+ {[%emt 0:00:15]} (52... Kg3 $142 53. Qe1+ Kf4) 53. Kg2 {[%emt 0:00:12]} Qd2+ {[%emt 0:00:16]} 54. Kg1 $2 {[%emt 0:00:18]} (54. Kf1 $19 Qf4+ 55. Kg2 Qg3+ 56. Kf1 Qf3+ 57. Ke1 Qxc3+ 58. Kd1 Qxc4 59. Qe7+ Kh3 60. Qd7) 54... Kg3 {[%emt 0:00:15] Weighted Error Value: White=0.61/Black=0.23 (precise)} 0-1

[Event "24th Hoogeschool Zeeland 2022"]
[Site "Vlissingen"]
[Date "2022.08.07"]
[Round "2.11"]
[White "Emans, Job"]
[Black "Dhulipalla Bala Chandra Prasad"]
[Result "0-1"]
[ECO "D37"]
[WhiteElo "2057"]
[BlackElo "2423"]
[Annotator "TA"]
[PlyCount "94"]
[EventDate "2022.08.05"]
[EventType "swiss"]
[EventCountry "NED"]
[SourceTitle "playchess.com"]
[Source "ChessBase"]
[SourceQuality "1"]
[TimeControl "40/5400+30:1800+30"]

{[%evp 9,94,21,24,6,11,0,7,8,25,23,25,26,25,31,16,0,32,28,33,35,71,47,63,55,57,-16,-14,-4,0,-6,-3,-39,-49,-51,-49,-49,0,0,9,9,3,5,6,2,10,-46,-55,-45,-56,-51,-47,-58,-34,-46,-39,-76,-11,-46,-17,-137,-131,-131,-119,-110,-110,-113,-72,-253,-244,-247,-194,-687,-662,-831,-827,-781,-778,-1151,-980,-29984,-29985,-29948,-5604,-2081,-1465,-2032,-1689]} 1. d4 {[%emt 0:00:07]} d5 {[%emt 0:03:00]} 2. c4 {[%emt 0:00:17]} e6 {[%emt 0:00:06]} 3. Nc3 {[%emt 0:00:12]} a6 {[%emt 0:00:05]} 4. cxd5 {[%emt 0:00:32]} exd5 {[%emt 0:00:05]} 5. Nf3 {[%emt 0:00:16]} Nf6 {[%emt 0:00:11]} 6. Bf4 {[%emt 0:00:42] D37: Queen's Gambit Declined: 5 Bf4.} Bd6 {[%emt 0:05:10]} 7. Bg3 {[%emt 0:00:49]} O-O {[%emt 0:00:30]} 8. e3 {[%emt 0:00:27] The position is equal.} b6 {[%emt 0:04:01]} 9. Bd3 {[%emt 0:04:05]} Bb7 {[%emt 0:10:44]} 10. Bh4 {[%emt 0:06:48]} Re8 {[%emt 0:07:44]} 11. O-O {[%emt 0:02:33]} Nbd7 {[%emt 0:02:40]} 12. Qc2 {[%emt 0:09:06][%cal Od3h7] [#]} Qb8 $146 {[%emt 0:05:33]} ({Predecessor:} 12... g6 13. Rad1 Qb8 14. Rfe1 c5 15. dxc5 bxc5 16. Bg3 Bxg3 17. hxg3 Qa7 18. b3 Rac8 {½-½ (42) Repka,C (2505)-Tian,E (2373) Redmond 2021}) 13. Bf5 {[%emt 0:09:09]} g6 {[%emt 0:30:58]} 14. Bh3 {[%emt 0:10:08]} Be7 {[%emt 0:13:47]} 15. Rac1 {[%emt 0:05:10]} c5 {[%emt 0:01:51]} 16. Na4 {[%emt 0:12:13] Threatens to win with Bxf6.} Bc6 {[%emt 0:01:13]} 17. Bxf6 {[%emt 0:01:04]} (17. dxc5 $14 Nxc5 18. Nxc5 bxc5 19. Bxf6 Bxf6 20. Qxc5) 17... Nxf6 {[%emt 0:00:26]} (17... Bxa4 {feels hotter.} 18. Qxa4 Nxf6 19. dxc5 bxc5 20. Qc2 a5) 18. dxc5 {[%emt 0:03:17]} Bxa4 {[%emt 0:00:10]} 19. Qxa4 {[%emt 0:00:02] aiming for c6.} bxc5 {[%emt 0:00:06]} 20. g3 {[%emt 0:02:15]} Qxb2 {[%emt 0:02:07]} 21. Rb1 {[%emt 0:07:11]} Qe2 {[%emt 0:00:13]} 22. Bg2 {[%emt 0:00:06]} Rab8 {[%emt 0:00:34]} (22... Qd3 $15 {is superior.}) 23. Ne5 $1 $11 {[%emt 0:02:24]} Kg7 {[%emt 0:04:48]} 24. Bf3 {[%emt 0:02:49]} Qd2 $132 {[%emt 0:00:16][%mdl 2048] Black puts up resistance} 25. Rxb8 {[%emt 0:00:42]} Rxb8 {[%emt 0:00:02]} 26. Nc6 {[%emt 0:00:36]} Re8 {[%emt 0:00:48][%cal Bb8e8,Be8e7,Be7b7][%mdl 32]} 27. Nxe7 {[%emt 0:02:46]} ({Better is} 27. Rd1 $11 Qb2 28. Qb3 Qxb3 29. axb3) 27... Rxe7 $15 {[%emt 0:00:02]} 28. Qxa6 {[%emt 0:00:05]} c4 {[%emt 0:01:35]} 29. Qa3 {[%emt 0:06:21]} Rb7 {[%emt 0:01:35] [#] Strongly threatening ...Rb2.} 30. Rd1 {[%emt 0:02:52]} Qc2 {[%emt 0:00:02]} 31. Rc1 $1 {[%emt 0:01:01]} Qf5 {[%emt 0:00:07]} 32. Kg2 {[%emt 0:03:48]} g5 {[%emt 0:00:35]} (32... Ne4 $17) 33. Qc3 $11 {[%emt 0:02:07]} h5 {[%emt 0:01:29] Inhibits g4.} (33... g4 $5 {[%cal Rg4f3]} 34. Bd1 Kg6 $15) 34. Qd4 {[%emt 0:01:06]} (34. Bd1 $11) 34... g4 $17 {[%emt 0:00:46]} 35. Bd1 {[%emt 0:00:35]} Qe4+ {[%emt 0:00:13]} 36. Qxe4 {[%emt 0:03:49]} Nxe4 {[%emt 0:00:02][%mdl 4096] Endgame KRB-KRN} 37. Bc2 {[%emt 0:00:08]} Nc3 {[%emt 0:00:37] Hoping for ...Rb2. Black is more active.} 38. a3 $2 {[%emt 0:00:45] [#] Now White is beyond hope.} (38. a4 $17 {was the only defense.}) 38... Rb2 $1 $19 {[%emt 0:01:57]} 39. Bf5 {[%emt 0:00:25]} Kf6 {[%emt 0:00:36]} 40. Bd7 {[%emt 0:00:59]} (40. Bh7 Ne2 41. Re1) 40... Ne4 {[%emt 0:00:16]} 41. Bc6 {[%emt 0:12:01]} Rxf2+ {[%emt 0:05:26]} 42. Kg1 {[%emt 0:00:12]} Rd2 {[%emt 0:00:41] And now ...Ng5 would win.} 43. a4 {[%emt 0:01:28]} Ng5 {[%emt 0:03:29] ( -> ...Nf3+)} 44. a5 {[%emt 0:02:01]} Nf3+ {[%emt 0:00:06]} 45. Kf1 {[%emt 0:00:03]} Nxh2+ {[%emt 0:00:05]} (45... Rxh2 $142 46. Rd1 h4 47. Bxd5 hxg3 48. Bxf3 gxf3 49. Kg1 c3 50. e4 c2 51. Ra1 Rd2 52. e5+ Ke7 53. Rf1 Rd1 54. a6 Rxf1+ 55. Kxf1 c1=Q#) 46. Ke1 {[%emt 0:00:09]} Nf3+ {[%emt 0:00:05]} 47. Kf1 {[%emt 0:00:03]} h4 {[%emt 0:00:40] Weighted Error Value: White=0.70/Black=0.32} 0-1

[Event "24th Hoogeschool Zeeland 2022"]
[Site "Vlissingen"]
[Date "2022.08.07"]
[Round "2.12"]
[White "Van Delft, Merijn"]
[Black "Riksen, John"]
[Result "1-0"]
[ECO "C62"]
[WhiteElo "2383"]
[BlackElo "2014"]
[Annotator "TA"]
[PlyCount "35"]
[EventDate "2022.08.05"]
[EventType "swiss"]
[EventCountry "NED"]
[SourceTitle "playchess.com"]
[Source "ChessBase"]
[SourceQuality "1"]
[TimeControl "40/5400+30:1800+30"]

{[%evp 12,35,52,50,91,102,104,101,109,111,170,177,505,512,508,471,577,580,646,435,420,412,426,400,912,888]} 1. e4 {[%emt 0:00:06]} d6 {[%emt 0:00:34]} 2. d4 {[%emt 0:00:15]} Nf6 {[%emt 0:00:04]} 3. Nc3 {[%emt 0:00:14]} e5 {[%emt 0:00:12]} 4. Nf3 {[%emt 0:00:28]} Nc6 {[%emt 0:00:37]} 5. Bb5 {[%emt 0:03:26]} Bd7 {[%emt 0:03:07]} 6. Bxc6 {[%emt 0:04:24]} Bxc6 {[%emt 0:00:10]} 7. Qd3 {[%emt 0:00:09]} ({Much weaker is} 7. dxe5 dxe5 8. Qe2 Bd6 $11) 7... Qe7 {[%emt 0:05:22] C62: Ruy Lopez: Steinitz Defence.} 8. O-O {[%emt 0:11:44]} a6 {[%emt 0:05:14]} 9. Re1 {[%emt 0:02:44]} h6 {[%emt 0:23:00] [#] White is better.} 10. b3 $146 {[%emt 0:04:59]} ({Predecessor:} 10. Qc4 O-O-O 11. d5 Bd7 12. b4 Qe8 13. a4 b5 14. axb5 Bxb5 15. Nxb5 Qxb5 16. Qc6 {1-0 (23) Gonzalez de la Torre,S (2464)-Catedra Diaz,P (1694) Jaen 2014}) 10... g5 {[%emt 0:06:12]} (10... Bd7 $16 {is a better defense.}) 11. Ba3 $18 {[%emt 0:05:05][%cal Of3e5] Hoping for Nxe5!} g4 $2 {[%emt 0:01:38] [#]} (11... Qd7 {is more resistant.} 12. dxe5 dxe5) 12. Nxe5 $1 {[%emt 0:03:54][%mdl 512]} Bb5 {[%emt 0:13:41]} 13. Nc4 {[%emt 0:00:20]} Qd7 {[%emt 0:12:45]} 14. e5 {[%emt 0:03:25] Threatens to win with exd6+.} dxe5 {[%emt 0:00:53]} 15. Rxe5+ {[%emt 0:01:03]} Kd8 {[%emt 0:00:35]} 16. Bxf8 {[%emt 0:00:56]} Rxf8 {[%emt 0:00:05]} 17. Qe3 {[%emt 0:07:53]} Rh8 {[%emt 0:06:15]} (17... Bxc4 $142 18. bxc4 Qc6) 18. Qf4 {[%emt 0:02:09] Black got outplayed after the opening.  Weighted Error Value: White=0.23 (precise) /Black=0.73} 1-0

[Event "24th Hoogeschool Zeeland 2022"]
[Site "Vlissingen"]
[Date "2022.08.07"]
[Round "2.13"]
[White "Lichtmannecker, Daniel"]
[Black "Pham, Khoi"]
[Result "0-1"]
[ECO "B40"]
[WhiteElo "2013"]
[BlackElo "2317"]
[Annotator "RC"]
[PlyCount "74"]
[EventDate "2022.08.05"]
[EventType "swiss"]
[EventCountry "NED"]
[SourceTitle "playchess.com"]
[Source "ChessBase"]
[SourceQuality "1"]
[TimeControl "40/5400+30:1800+30"]

1. e4 {[%emt 0:11:16]} c5 {[%emt 0:00:09]} 2. Nf3 {[%emt 0:00:05]} e6 {[%emt 0:00:06]} 3. g3 {[%emt 0:00:41]} Nc6 {[%emt 0:00:33]} 4. Bg2 {[%emt 0:00:27]} Nf6 {[%emt 0:00:08]} 5. Qe2 {[%emt 0:00:14]} e5 {[%emt 0:00:10]} 6. c3 {[%emt 0:02:27]} Be7 {[%emt 0:01:47]} 7. O-O {[%emt 0:00:19]} O-O {[%emt 0:00:06]} 8. Rd1 {[%emt 0:05:11]} d5 {[%emt 0:01:21]} 9. d3 {[%emt 0:07:59]} d4 {[%emt 0:01:35]} 10. a4 {[%emt 0:03:20]} a6 {[%emt 0:14:08]} 11. Nbd2 {[%emt 0:02:29]} Rb8 {[%emt 0:05:57]} 12. h3 {[%emt 0:19:46]} b5 {[%emt 0:10:21]} 13. axb5 {[%emt 0:00:22]} axb5 {[%emt 0:00:05]} 14. c4 {[%emt 0:06:56]} Ne8 {[%emt 0:03:57]} 15. Ne1 {[%emt 0:03:54]} bxc4 {[%emt 0:03:49]} 16. Nxc4 {[%emt 0:00:22]} Nd6 {[%emt 0:01:09]} 17. Nxd6 {[%emt 0:00:49]} Qxd6 {[%emt 0:00:34]} 18. f4 {[%emt 0:02:21]} Be6 {[%emt 0:08:38]} 19. Nf3 {[%emt 0:03:19]} f6 {[%emt 0:02:29]} 20. f5 {[%emt 0:04:55]} Bb3 {[%emt 0:01:40]} 21. Rf1 {[%emt 0:00:43]} Nb4 {[%emt 0:05:45]} 22. Nd2 {[%emt 0:02:42]} Bf7 {[%emt 0:06:02]} 23. b3 {[%emt 0:03:48]} Nc2 {[%emt 0:02:11]} 24. Rb1 {[%emt 0:01:03]} Ne3 {[%emt 0:00:59]} 25. Rf3 {[%emt 0:02:33]} Qa6 {[%emt 0:02:25]} 26. Rb2 {[%emt 0:06:30]} Qa1 {[%emt 0:04:04]} 27. Rb1 {[%emt 0:00:58]} Qc3 {[%emt 0:00:43]} 28. Nc4 {[%emt 0:03:40]} Qc2 {[%emt 0:12:50]} 29. Qxc2 {[%emt 0:00:23]} Nxc2 {[%emt 0:00:05]} 30. Rb2 {[%emt 0:01:40]} Ne1 {[%emt 0:00:28]} 31. Kf2 {[%emt 0:01:46]} Nxf3 {[%emt 0:00:06]} 32. Bxf3 {[%emt 0:00:03]} Ra8 {[%emt 0:02:40]} 33. Ke1 {[%emt 0:00:53]} Rfb8 {[%emt 0:01:09]} 34. Kd1 {[%emt 0:00:52]} Bd8 {[%emt 0:00:39]} 35. Kc2 {[%emt 0:00:27]} Ba5 {[%emt 0:00:37]} 36. Nxa5 {[%emt 0:01:26]} Rxa5 {[%emt 0:00:06]} 37. Bd1 {[%emt 0:00:42]} Rab5 {[%emt 0:00:11]} 0-1

[Event "24th Hoogeschool Zeeland 2022"]
[Site "Vlissingen"]
[Date "2022.08.07"]
[Round "2.14"]
[White "Royal, Shreyas"]
[Black "De Wolf, Johan"]
[Result "1-0"]
[ECO "E08"]
[WhiteElo "2353"]
[BlackElo "2010"]
[Annotator "RC"]
[PlyCount "95"]
[EventDate "2022.08.05"]
[EventType "swiss"]
[EventCountry "NED"]
[SourceTitle "playchess.com"]
[Source "ChessBase"]
[SourceQuality "1"]
[TimeControl "40/5400+30:1800+30"]

1. d4 {[%emt 0:00:03]} Nf6 {[%emt 0:00:13]} 2. c4 {[%emt 0:00:06]} e6 {[%emt 0:00:10]} 3. Nf3 {[%emt 0:00:07]} d5 {[%emt 0:00:26]} 4. g3 {[%emt 0:00:08]} Be7 {[%emt 0:01:58]} 5. Bg2 {[%emt 0:00:10]} O-O {[%emt 0:00:12]} 6. O-O {[%emt 0:00:07]} c6 {[%emt 0:01:26]} 7. Qc2 {[%emt 0:00:29]} b6 {[%emt 0:02:53]} 8. b3 {[%emt 0:00:39]} Bb7 {[%emt 0:00:17]} 9. Bb2 {[%emt 0:01:11]} Nbd7 {[%emt 0:00:46]} 10. Nc3 {[%emt 0:00:26]} Rc8 {[%emt 0:02:34]} 11. e4 {[%emt 0:01:13]} Qc7 {[%emt 0:03:17]} 12. Rad1 {[%emt 0:01:19]} Qb8 {[%emt 0:03:59]} 13. Rfe1 {[%emt 0:14:23]} Rfd8 {[%emt 0:11:51]} 14. Bc1 {[%emt 0:03:28]} Qa8 {[%emt 0:09:50]} 15. e5 {[%emt 0:04:24]} Ne8 {[%emt 0:01:25]} 16. Bg5 {[%emt 0:00:11]} Bxg5 {[%emt 0:01:44]} 17. Nxg5 {[%emt 0:00:07]} Nf8 {[%emt 0:03:20]} 18. c5 {[%emt 0:00:12]} h6 {[%emt 0:07:27]} 19. Nh3 {[%emt 0:01:53]} Rc7 {[%emt 0:03:32]} 20. f4 {[%emt 0:04:06]} Bc8 {[%emt 0:02:52]} 21. Nf2 {[%emt 0:08:45]} f6 {[%emt 0:04:44]} 22. Nd3 {[%emt 0:08:57]} f5 {[%emt 0:02:21]} 23. b4 {[%emt 0:01:11]} Qb8 {[%emt 0:07:06]} 24. a4 {[%emt 0:06:45]} Ba6 {[%emt 0:04:14]} 25. b5 {[%emt 0:01:35]} cxb5 {[%emt 0:00:43]} 26. axb5 {[%emt 0:00:23]} bxc5 {[%emt 0:00:53]} 27. Nxd5 {[%emt 0:04:15]} exd5 {[%emt 0:01:36]} 28. bxa6 {[%emt 0:00:06]} cxd4 {[%emt 0:03:07]} 29. Qa4 {[%emt 0:07:48]} Ne6 {[%emt 0:01:38]} 30. Rb1 {[%emt 0:02:36]} Qc8 {[%emt 0:01:15]} 31. Nb4 {[%emt 0:01:02]} Rc4 {[%emt 0:02:11]} 32. Bxd5 {[%emt 0:00:54]} Rxd5 {[%emt 0:02:12]} 33. Nxd5 {[%emt 0:00:06]} Rxa4 {[%emt 0:00:38]} 34. Ne7+ {[%emt 0:00:04]} Kh7 {[%emt 0:01:34]} 35. Nxc8 {[%emt 0:00:06]} Rxa6 {[%emt 0:00:14]} 36. Ra1 {[%emt 0:00:19]} Rc6 {[%emt 0:01:12]} 37. Rec1 {[%emt 0:00:36]} Rc3 {[%emt 0:01:45]} 38. Rxc3 {[%emt 0:03:36]} dxc3 {[%emt 0:00:07]} 39. Rc1 {[%emt 0:00:10]} Nd4 {[%emt 0:00:15]} 40. Kf2 {[%emt 0:00:03]} Nb5 {[%emt 0:00:36]} 41. Ke3 {[%emt 0:30:04]} Nec7 {[%emt 0:30:41]} 42. Kd3 {[%emt 0:00:30]} Ne6 {[%emt 0:06:02]} 43. Nd6 {[%emt 0:01:13]} Nbd4 {[%emt 0:01:27]} 44. Rxc3 {[%emt 0:00:20]} g5 {[%emt 0:00:21]} 45. Rc4 {[%emt 0:06:02]} Nf3 {[%emt 0:01:36]} 46. Nxf5 {[%emt 0:00:18]} gxf4 {[%emt 0:00:31]} 47. gxf4 {[%emt 0:00:12]} Nxh2 {[%emt 0:00:34]} 48. Ke4 {[%emt 0:00:13]} 1-0

[Event "24th Hoogeschool Zeeland 2022"]
[Site "Vlissingen"]
[Date "2022.08.07"]
[Round "2.15"]
[White "Van Wijk, Peter"]
[Black "Seul, Georg"]
[Result "0-1"]
[ECO "B12"]
[WhiteElo "2016"]
[BlackElo "2367"]
[Annotator "RC"]
[PlyCount "38"]
[EventDate "2022.08.05"]
[EventType "swiss"]
[EventCountry "NED"]
[SourceTitle "playchess.com"]
[Source "ChessBase"]
[SourceQuality "1"]
[TimeControl "40/5400+30:1800+30"]

1. e4 {[%emt 0:13:18]} c6 {[%emt 0:00:28]} 2. d4 {[%emt 0:00:09]} d5 {[%emt 0:00:09]} 3. e5 {[%emt 0:00:11]} c5 {[%emt 0:00:11]} 4. dxc5 {[%emt 0:00:47]} e6 {[%emt 0:00:09]} 5. a3 {[%emt 0:00:07]} Bxc5 {[%emt 0:00:13]} 6. b4 {[%emt 0:00:10]} Be7 {[%emt 0:00:42]} 7. c4 {[%emt 0:02:12]} Qc7 {[%emt 0:18:35]} 8. Bb2 {[%emt 0:09:19]} dxc4 {[%emt 0:01:39]} 9. Qg4 {[%emt 0:04:13]} f5 {[%emt 0:26:11]} 10. exf6 {[%emt 0:06:37]} Bxf6 {[%emt 0:08:31]} 11. Nc3 {[%emt 0:18:48]} Qe5+ {[%emt 0:03:34]} 12. Be2 {[%emt 0:02:58]} Qxc3+ {[%emt 0:02:24]} 13. Bxc3 {[%emt 0:09:43]} Bxc3+ {[%emt 0:00:05]} 14. Kf1 {[%emt 0:00:39]} Bxa1 {[%emt 0:00:07]} 15. Qxc4 {[%emt 0:00:06]} Nc6 {[%emt 0:13:14]} 16. Nh3 {[%emt 0:09:26]} Nf6 {[%emt 0:03:44]} 17. g4 {[%emt 0:06:45]} O-O {[%emt 0:05:29]} 18. Kg2 {[%emt 0:07:32]} Be5 {[%emt 0:00:54]} 19. f4 {[%emt 0:03:15]} Nd5 {[%emt 0:00:30]} 0-1

[Event "24th Hoogeschool Zeeland 2022"]
[Site "Vlissingen"]
[Date "2022.08.07"]
[Round "2.16"]
[White "Sorbe, Stephane"]
[Black "Smeets, Kobe"]
[Result "1-0"]
[ECO "B25"]
[WhiteElo "2352"]
[BlackElo "1963"]
[Annotator "RC"]
[PlyCount "65"]
[EventDate "2022.08.05"]
[EventType "swiss"]
[EventCountry "NED"]
[SourceTitle "playchess.com"]
[Source "ChessBase"]
[SourceQuality "1"]
[TimeControl "40/5400+30:1800+30"]

1. e4 {[%emt 0:00:03]} c5 {[%emt 0:00:07]} 2. Nc3 {[%emt 0:00:16]} Nc6 {[%emt 0:00:12]} 3. g3 {[%emt 0:00:06]} g6 {[%emt 0:00:09]} 4. Bg2 {[%emt 0:00:06]} Bg7 {[%emt 0:00:09]} 5. d3 {[%emt 0:00:07]} d6 {[%emt 0:00:16]} 6. f4 {[%emt 0:00:16]} e6 {[%emt 0:00:30]} 7. Nf3 {[%emt 0:00:12]} Nge7 {[%emt 0:00:30]} 8. O-O {[%emt 0:00:10]} O-O {[%emt 0:00:14]} 9. Be3 {[%emt 0:00:10]} Rb8 {[%emt 0:00:35]} 10. a3 {[%emt 0:02:11]} b5 {[%emt 0:01:54]} 11. Qd2 {[%emt 0:00:43]} Nd4 {[%emt 0:02:08]} 12. Qf2 {[%emt 0:09:05]} Nec6 {[%emt 0:08:49]} 13. Nd1 {[%emt 0:01:57]} Nxf3+ {[%emt 0:14:47]} 14. Qxf3 {[%emt 0:00:50]} b4 {[%emt 0:02:06]} 15. axb4 {[%emt 0:05:11]} Nxb4 {[%emt 0:01:01]} 16. Qe2 {[%emt 0:02:35]} Qb6 {[%emt 0:15:29]} 17. c3 {[%emt 0:05:41]} Nc6 {[%emt 0:00:13]} 18. b4 {[%emt 0:06:48]} Qb5 {[%emt 0:07:49]} 19. e5 {[%emt 0:18:27]} Rd8 {[%emt 0:04:49]} 20. c4 {[%emt 0:08:33]} Qb6 {[%emt 0:00:28]} 21. bxc5 {[%emt 0:06:07]} dxc5 {[%emt 0:00:12]} 22. Nc3 {[%emt 0:02:38]} Qb3 {[%emt 0:14:22]} 23. Qd2 {[%emt 0:10:10]} Nxe5 {[%emt 0:11:49]} 24. fxe5 {[%emt 0:03:10]} Bxe5 {[%emt 0:00:08]} 25. Rac1 {[%emt 0:02:55]} Ba6 {[%emt 0:05:26]} 26. Bf4 {[%emt 0:02:34]} Bd4+ {[%emt 0:02:13]} 27. Kh1 {[%emt 0:00:05]} Rbc8 {[%emt 0:00:56]} 28. Bg5 {[%emt 0:01:00]} Rd7 {[%emt 0:00:40]} 29. Ne4 {[%emt 0:06:27]} f5 {[%emt 0:00:13]} 30. Rb1 {[%emt 0:00:20]} Qa3 {[%emt 0:00:40]} 31. Nf6+ {[%emt 0:00:36]} Bxf6 {[%emt 0:00:07]} 32. Bxf6 {[%emt 0:00:03]} Rxd3 {[%emt 0:03:53]} 33. Qh6 {[%emt 0:00:53]} 1-0